Workbook

Sheet Banheiro + Rede (hidden)
C1: PREFEITURA MUNICIPAL DE xxxxxxxxxxxxxxxxxxxxxxxxxxx
D2: Módulo Sanitário completo com esgoto ligado a rede pública
D3: SINAPI/SETOP - Dezembro/2017 (RT=13/01/2018) | H3: BDI-22,85%
A4: Item | B4: CÓDIGO | C4: FONTE | D4: Descrição dos serviços | E4: Unidade | F4: Quantidade Prevista | G4: Valor Unitário | H4: Valor Total Sem BDI | I4: Valor total com BDI
A5: 1 | D5: Serviços preliminares
A6: 1.1 | B6: 73948/016 | C6: SINAPI | D6: Limpeza manual do terreno (com raspagem superficial) | E6: m2 | F6: 8.02 | G6: 3.01 | H6: =F6*G6 -> 24.1402 | I6: =H6*1.2285 -> 29.6562357
A7: 1.2 | B7: 74077/003 | C7: SINAPI | D7: Locação convencional de obra, através de gabarito de tábuas | E7: m2 | F7: 3.45 | G7: 4.77 | H7: =F7*G7 -> 16.4565 | I7: =H7*1.2285 -> 20.21681025
A8: SUB-TOTAL | H8: =SUM(H6:H7) -> 40.5967 | I8: 49.87304595
A9: 2 | D9: Fundações
A10: 2.1 | B10: 93358 | C10: SINAPI | D10: Escavação manual de valas | E10: m3 | F10: 0.41 | G10: 47.63 | H10: 19.5283 | I10: 23.99051655
A11: 2.2 | B11: 73361 | C11: SINAPI | D11: Concreto ciclópico 30% de pedra de mão consumo mínimo de cimento 150 Kg\m3 – preparo e lançamento | E11: m3 | F11: 0.41 | G11: 293.51 | H11: 120.3391 | I11: 147.8365843
A12: SUB-TOTAL | H12: =SUM(H10:H11) -> 139.8674 | I12: 171.8271009
A13: 3 | D13: Coberturas
A14: 3.1 | B14: 74202/002 | C14: SINAPI | D14: Laje pré-moldada para piso, sobrecarga de 200 Kg/m², espessura =8 cm, com lajotas e capeamento com concreto FCK=20 Mpa e ferragem negativa, esp. 4 cm, com escoramento, inclinação 10% e beiral de 20 cm nas quatro faces. | E14: m2 | F14: 5.13 | G14: 63.25 | H14: 324.4725 | I14: 398.6144662
A15: SUB-TOTAL | H15: =H14 -> 324.4725 | I15: 398.6144662
A16: 4 | D16: Paredes, revestimentos e elementos decorativos
A17: 4.1 | D17: Alvenaria de tijolos furados
A18: 4.1.1 | B18: 87520 | C18: SINAPI | D18: Alvenaria de vedação de blocos cerâmicos furados na horizontal de 9X19X19 cm (espessura 9 cm) de paredes com área líquida maior ou igual a 6,0 m² com vãos, e argamassa de assentamento com preparo manual. | E18: m2 | F18: 17.4 | G18: 51.9 | H18: 903.06 | I18: 1109.40921
A19: 4.1.2 | B19: 87496 | C19: SINAPI | D19: Alvenaria de vedação de blocos cerâmicos furados na horizontal de 9X19X19 cm (espessura 9 cm) de paredes com área líquida menor que 6,0 m² sem vãos, e argamassa de assentamento com preparo manual (apoio pia de cozinha e tanque de lavar roupa). | E19: m2 | F19: 2.16 | G19: 55.62 | H19: 120.1392 | I19: 147.5910072
A20: 4.1.3 | B20: 87496 | C20: SINAPI | D20: Alvenaria de vedação de blocos cerâmicos furados na horizontal de 9X19X19 cm (espessura 9 cm) de paredes com área líquida menor que 6,0 m² sem vãos, e argamassa de assentamento com preparo manual (apoio da caixa d`água). | E20: m2 | F20: 0.5 | G20: 55.62 | H20: 27.81 | I20: 34.164585
D21: SUB-TOTAL | H21: =SUM(H18:H20) -> 1051.0092 | I21: 1291.164802
A22: 4.2 | D22: Revestimentos
A23: 4.2.1 | B23: 87878 | C23: SINAPI | D23: Chapisco de parede, com argamassa de cimento e areia, espessura 0,5 cm, traço 1:3, aplicado com colher de pedreiro. (incluindo o interior do teto do banheiro). | E23: m2 | F23: 42.52 | G23: 2.68 | H23: 113.9536 | I23: 139.9919976
A24: 4.2.2 | B24: 87530 | C24: SINAPI | D24: Massa única, para recebimento de pintura, em argamassa traço 1:2:8 (cimento, cal hidratada e areia), preparo manual, aplicada manulamente, espessura 2,0 cm, com execução de taliscas (incluindo o interior do teto do banheiro). | E24: m2 | F24: 37.2 | G24: 24.66 | H24: 917.352 | I24: 1126.966932
A25: 4.2.3 | B25: 87530 | C25: SINAPI | D25: Massa única, para recebimento de pintura, em argamassa traço 1:2:8 (cimento, cal hidratada e areia), preparo manual, aplicada manulamente, espessura 2,0 cm, com execução de taliscas (apoio da pia de cozinha e tanque de lavar roupa). | E25: m2 | F25: 4.32 | G25: 24.66 | H25: 106.5312 | I25: 130.8735792
A26: 4.2.4 | B26: 87530 | C26: SINAPI | D26: Massa única, para recebimento de pintura, em argamassa traço 1:2:8 (cimento, cal hidratada e areia), preparo manual, aplicada manulamente, espessura 2,0 cm, com execução de taliscas (apoio da pia de cozinha e tanque de lavar roupa). | E26: m2 | F26: 1 | G26: 24.66 | H26: 24.66 | I26: 30.29481
A27: 4.2.5 | B27: 87271 | C27: SINAPI | D27: Revestimento cerâmico para paredes internas com placas tipo esmaltada extra de dimensões 25x35 cm, aplicadas em ambiente de área maior que 5,0 m² a meia altura das paredes. | E27: m2 | F27: 10.08 | G27: 57.52 | H27: 579.8016 | I27: 712.2862656
A28: SUB-TOTAL | H28: =SUM(H23:H27) -> 1742.2984 | I28: 2140.413584
A29: 4.3 | D29: Esquadrias
A30: 4.3.1 | B30: SER-POR-010 | C30: SETOP | D30: Fornecimento e assentamento de porta completa, estrutura e marco em chapa dobrada, 60 x 210 cm. | E30: pça | F30: 1 | G30: 349.38 | H30: 349.38 | I30: 429.21333
A31: 4.3.2 | B31: 94559 | C31: SINAPI | D31: Janela de aço basculante, fixação com argamassa, sem vidros, padronizada (60x60 cm). | E31: m2 | F31: 0.36 | G31: 441.85 | H31: 159.066 | I31: 195.412581
A32: 4.3.3 | B32: 72116 | C32: SINAPI | D32: Vidro liso comum transparente esp. 3 mm colocado | E32: m2 | F32: 0.36 | G32: 62.3 | H32: 22.428 | I32: 27.552798
A33: SUB-TOTAL | H33: =SUM(H30:H32) -> 530.874 | I33: 652.178709
A34: 5 | D34: Pisos interno e externo
A35: 5.1 | B35: 94974 | C35: SINAPI | D35: Concreto magro para lastro, traço 1:4,5:4,5 (cimento/areia média/brita1), preparo manual (contrapiso interno, esp= 6,0 cm). | E35: m³ | F35: 0.14 | G35: 284.3 | H35: 39.802 | I35: 48.896757
A36: 5.2 | B36: 87246 | C36: SINAPI | D36: Revestimento cerâmico para piso com placas tipo grês, dimensões 35x35 cm, aplicada em ambiente de área menor que 5,0 m². | E36: m2 | F36: 2.4 | G36: 37.22 | H36: 89.328 | I36: 109.739448
A37: 5.3 | B37: 94994 | C37: SINAPI | D37: Execução de passeio (calçada) com concreto moldado in loco, feito em obra, acabamento convencional, esp = 8 cm, armado. | E37: m2 | F37: 8.02 | G37: 59.18 | H37: 474.6236 | I37: 583.0750926
A38: SUB-TOTAL | H38: =SUM(H35:H37) -> 603.7536 | I38: 741.7112976
A39: 6 | D39: Pinturas
A40: 6.1 | B40: 88489 | C40: SINAPI | D40: Aplicação manual de pintura com tinta látex acrílica em paredes - duas demãos | E40: m² | F40: 42.52 | G40: 9.41 | H40: 400.1132 | I40: 491.5390662
A41: 6.2 | B41: 74145/001 | C41: SINAPI | D41: Pintura de esquadrias em esmalte sintético - duas demãos, incluindo uma demão de fundo anticorrosivo (porta e janela). | E41: m2 | F41: 3.24 | G41: 14.04 | H41: 45.4896 | I41: 55.8839736
A42: SUB-TOTAL | H42: =SUM(H40:H41) -> 445.6028 | I42: 547.4230398
A43: 7 | D43: Instalações elétricas
A44: 7.1 | B44: 93145 | C44: SINAPI | D44: Ponto de iluminação e tomada, residencial, incluindo interruptor simples e tomada 10A/250V, caixa elétrica, eletroduto, cabo, rasgo, quebra e chumbamento (excluindo luminária e lâmpada). | E44: unidade | F44: 1 | G44: 127.92 | H44: 127.92 | I44: 157.14972
A45: 7.2 | B45: 93040 | C45: SINAPI | D45: Lâmpada fluorescente 60 W | E45: unidade | F45: 1 | G45: 9.72 | H45: 9.72 | I45: 11.94102
A46: SUB-TOTAL | H46: =SUM(H44:H45) -> 137.64 | I46: 169.09074
A47: 8 | D47: Instalações hidrossanitárias
A48: 8.1 | B48: 86943 | C48: SINAPI | D48: Fornecimento e instalação de lavatório em louça branca, suspenso, incluso sifão flexível em PVC, válvula e engate flexível plástico de 30 cm, com torneira cromada de mesa. | E48: unidade | F48: 1 | G48: 172.94 | H48: 172.94 | I48: 212.45679
A49: 8.2 | B49: 95469 | C49: SINAPI | D49: Fornecimento e instalação de vaso sanitário sifonado convencional de louça branca. | E49: unidade | F49: 1 | G49: 176.48 | H49: 176.48 | I49: 216.80568
A50: 8.3 | B50: LOU-TAN-030 | C50: SETOP | D50: Fornecimento e instalação de tanque de lavar roupas em marmorite sintético, dois bojos ( cuba e batedor), válvula em plástico branco 1 1/4" x 1 1/2", sifão plástico tipo copo 1 1/4". | E50: unidade | F50: 1 | G50: 348.55 | H50: 348.55 | I50: 428.193675
A51: 8.4 | B51: HID-SIF-025 | C51: SETOP | D51: Fornecimento e instalação de caixa de espuma em PVC, 250x230x75mm, tubo de PVC 50 mm e tampa e porta tampa. | E51: unidade | F51: 1 | G51: 66.52 | H51: 66.52 | I51: 81.71982
A52: 8.5 | B52: 86934 | C52: SINAPI | D52: Fornecimento e instalação de pia de cozinha de marmorite sintético (1,20 X 0,60 m), incluindo torneira cromada de 1/2 ", válvula em plástico branco, sifão de plástico. | E52: unidade | F52: 1 | G52: 236.43 | H52: 236.43 | I52: 290.454255
A53: 8.6 | B53: HID-SIF-025 | C53: SETOP | D53: Fornecimento e instalação de caixa de gordura em PVC, 250x230x75mm, tubo de PVC 50 mm e tampa e porta tampa. | E53: unidade | F53: 1 | G53: =G51 -> 66.52 | H53: 66.52 | I53: 81.71982
A54: 8.7 | B54: 34637 | C54: SINAPI | D54: Fornecimento e instalação de caixa d`água de polietileno com tampa, capacidade 310 litros, sem acessórios. | E54: unidade | F54: 1 | G54: 167.92 | H54: 167.92 | I54: 206.28972
A55: 8.8 | B55: 94975 | C55: SINAPI | D55: Base de sustentação da caixa d`água (0,75 x 0,75 x 0,05 m) concreto armado FCK - 15 Mpa, preparo manual | E55: m3 | F55: 0.028 | G55: 300.41 | H55: 8.41148 | I55: 10.33350318
A56: 8.9 | B56: 9535 | C56: SINAPI | D56: Fornecimento e instalação de chuveiro elétrico com corpo de plástico simples | E56: unidade | F56: 1 | G56: 59.55 | H56: 59.55 | I56: 73.157175
A57: 8.10 | B57: 74104/001 | C57: SINAPI | D57: Caixa de inspeção em tijolo maciço (60x60x60cm), revestida internamente com barra lisa (cimento e areia, traço 1:4), tampa pré-moldada de concreto e fundo de concreto 15 MPA. | E57: Unidade | F57: 1 | G57: 117.16 | H57: 117.16 | I57: 143.93106
A58: 8.11 | B58: 94650 | C58: SINAPI | D58: Fornecimento e instalação de tubo de PVC, série normal, esgoto predial, DN 40 mm, instalado na caixa de inspeção, junto à parede do banheiro, em prumada de ventilação. | E58: m | F58: 3 | G58: 12.86 | H58: 38.58 | I58: 47.39553
A59: 8.12 | B59: Composição | D59: Instalação hidro-sanitária do módulo - conforme composição anexa. | E59: unidade | F59: 1 | G59: 499.09 | H59: 499.09 | I59: 613.132065
A60: SUB-TOTAL | H60: =SUM(H48:H59) -> 1958.15148 | I60: 2405.589093
A61: 9 | D61: Ligação do esgoto a rede pública
A62: 9.1 | B62: 93358 | C62: SINAPI | D62: Escavação manual de valas | E62: m³ | F62: 0.72 | G62: 47.63 | H62: 34.2936 | I62: 42.1296876
A63: 9.2 | B63: 89714 | C63: SINAPI | D63: Tubo de PVC, série normal, esgoto predial, DN 100 mm, fornecido e instalado em ramal de descarga ou ramal de esgoto sanitário | E63: m | F63: 12 | G63: 34.32 | H63: 411.84 | I63: 505.94544
A64: 9.3 | B64: 1965 | C64: SINAPI | D64: Curva de 45 G com bolsas para esgoto sanitário | E64: Unidade | F64: 2 | G64: 25.32 | H64: 50.64 | I64: 62.21124
A65: 9.4 | B65: 37953 | C65: SINAPI | D65: Selim para ligação de esgoto 150 x 100 mm | E65: Unidade | F65: 1 | G65: 3.75 | H65: 3.75 | I65: 4.606875
A66: 9.5 | B66: 2696 | C66: SINAPI | D66: Mão de obra | E66: h | F66: 1.5 | G66: 13.59 | H66: 20.385 | I66: 25.0429725
A67: SUB-TOTAL | H67: =SUM(H62:H66) -> 520.9086 | I67: 639.9362151
A68: TOTAL SEM B.D.I. | H68: =SUM(H8+H12+H15+H21+H28+H33+H38+H42+H46+H60+H67) -> 7495.17468 | I68: 9207.822094
A69: B.D.I.(22,85%) | H69: =H68*0.2285 -> 1712.647414
A70: TOTAL | H70: =SUM(H68+H69) -> 9207.822094 | I70: =SUM(I8+I12+I15+I21+I28+I33+I38+I42+I46+I60+I67) -> 9207.822094

Sheet Banh. fossas
C1: PREFEITURA MUNICIPAL DE SÃO JOÃO DO PARAÍSO-MG
D2: Melhorias Sanitárias completas com esgoto ligado a tanque séptico, filtro anaeróbio e sumidouro
D3: Mês de referência -SINAPI - Fevereiro/2025, SEINFRA - Janeiro/2025 | I3: BDI-21,58%
A4: Item | B4: CÓDIGO | C4: FONTE | D4: Descrição dos serviços | E4: Unidade | F4: Quantidade P/ cada Módulo | G4: Quantidade P/ os 16 Módulos | H4: Valor Unitário Sem BDI | I4: Valor Unitário Com BDI | J4: Valor Total Sem BDI | K4: Valor Total Com BDI P/ Cada Módulo Sanitário | L4: Valor Total Com BDI P/ os 16 Módulos Sanitários
A5: 1 | D5: Administração local
A6: 1.1 | B6: 90777 | C6: SINAPI | D6: Engenheiro civil de obra junior com encargos complementares | E6: H | F6: 2 | G6: =F6*16 -> 32 | H6: 131.3 | I6: =H6*1.2158 -> 159.63454 | J6: =F6*H6 -> 262.6 | K6: =J6*1.2158 -> 319.26908 | L6: =K6*16 -> 5108.30528
A7: 1.2 | B7: 90776 | C7: SINAPI | D7: Encarregado Geral de obras com encargos complementares | E7: H | F7: 10 | G7: =F7*16 -> 160 | H7: 60.15 | I7: =H7*1.2158 -> 73.13037 | J7: =F7*H7 -> 601.5 | K7: =J7*1.2158 -> 731.3037 | L7: =K7*16 -> 11700.8592
A8: SUB-TOTAL | J8: =J6+J7 -> 864.1 | K8: =J8*1.2158 -> 1050.57278 | L8: =K8*16 -> 16809.16448
A9: 2 | D9: Serviços preliminares
A10: 2.1 | B10: 98519 | C10: SINAPI | D10: Revolvimento e limpeza manual de solo | E10: m2 | F10: 22.02 | G10: =F10*16 -> 352.32 | H10: 3.9 | I10: =H10*1.2158 -> 4.74162 | J10: =F10*H10 -> 85.878 | K10: =J10*1.2158 -> 104.4104724 | L10: =K10*16 -> 1670.567558
A11: 2.2 | B11: ED-17989 | C11: SETOP | D11: Locação de obra com gabarito de tábuas corridas pontaletadas a cada 2,00 m, reaproveitamento 2 vezes. | E11: m | F11: 6.8 | G11: =F11*16 -> 108.8 | H11: 54.28 | I11: =H11*1.2158 -> 65.993624 | J11: =F11*H11 -> 369.104 | K11: =J11*1.2158 -> 448.7566432 | L11: =K11*16 -> 7180.106291
A12: SUB-TOTAL | J12: =J10+J11 -> 454.982 | K12: =J12*1.2158 -> 553.1671156 | L12: =K12*16 -> 8850.67385
A13: 3 | D13: Fundações
A14: 3.1 | B14: 93358 | C14: SINAPI | D14: Escavação manual de valas com profundidade igual ou menor que 1,30 m. | E14: m3 | F14: 0.41 | G14: =F14*16 -> 6.56 | H14: 89.55 | I14: =H14*1.2158 -> 108.87489 | J14: =F14*H14 -> 36.7155 | K14: =J14*1.2158 -> 44.6387049 | L14: =K14*16 -> 714.2192784
A15: 3.2 | B15: ED-49780 | C15: SETOP | D15: Concreto ciclópico 30% de pedra de mão consumo mínimo de cimento 150 Kg\m3 – preparo e lançamento | E15: m3 | F15: 0.41 | G15: =F15*16 -> 6.56 | H15: 570.84 | I15: =H15*1.2158 -> 694.027272 | J15: =F15*H15 -> 234.0444 | K15: =J15*1.2158 -> 284.5511815 | L15: =K15*16 -> 4552.818904
A16: SUB-TOTAL | J16: =J14+J15 -> 270.7599 | K16: =J16*1.2158 -> 329.1898864 | L16: =K16*16 -> 5267.038183
A17: 4 | D17: Coberturas
A18: 4.1 | B18: 101964 | C18: SINAPI | D18: Laje pré-moldada unidirecional, biapoiada, para piso, enchimento em cerâmica, vigota convencional, altura total da laje (enchimento + capa) = 8cm + 4 cm. | E18: m2 | F18: 5.13 | G18: =F18*16 -> 82.08 | H18: 196.89 | I18: =H18*1.2158 -> 239.378862 | J18: =F18*H18 -> 1010.0457 | K18: =J18*1.2158 -> 1228.013562 | L18: =K18*16 -> 19648.21699
A19: SUB-TOTAL | J19: =J18 -> 1010.0457 | K19: =J19*1.2158 -> 1228.013562 | L19: =K19*16 -> 19648.21699
A20: 5 | D20: Alvenaria de tijolos furados
A21: 5.1 | B21: ED-48231 | C21: SETOP | D21: Alvenaria de vedação com tijolo cerâmico furado, Esp.9 cm, para revestimento, inclusive argamassa para assentamento. | E21: m2 | F21: 19.34 | G21: =F21*16 -> 309.44 | H21: 57.1 | I21: =H21*1.2158 -> 69.42218 | J21: =F21*H21 -> 1104.314 | K21: =J21*1.2158 -> 1342.624961 | L21: =K21*16 -> 21481.99938
A22: 5.2 | B22: ED-48231 | C22: SETOP | D22: Alvenaria de vedação com tijolo cerâmico furado, Esp.9 cm, para revestimento, inclusive argamassa para assentamento (paredes de suporte da pia de cozinha e tanque de lavar roupa) | E22: m2 | F22: 2.16 | G22: =F22*16 -> 34.56 | H22: 57.1 | I22: =H22*1.2158 -> 69.42218 | J22: =F22*H22 -> 123.336 | K22: =J22*1.2158 -> 149.9519088 | L22: =K22*16 -> 2399.230541
A23: 5.3 | B23: ED-48231 | C23: SETOP | D23: Alvenaria de vedação com tijolo cerâmico furado, Esp.9 cm, para revestimento, inclusive argamassa para assentamento (parede de suporte da caixa d`água) | E23: m2 | F23: 0.7 | G23: 11.2 | H23: 57.1 | I23: =H23*1.2158 -> 69.42218 | J23: =F23*H23 -> 39.97 | K23: =J23*1.2158 -> 48.595526 | L23: 777.528416
A24: SUB-TOTAL | J24: =SUM(J21:J23) -> 1267.62 | K24: =J24*1.2158 -> 1541.172396 | L24: 24658.75834
A25: 6 | D25: Revestimentos
A26: 6.1 | B26: 87878 | C26: SINAPI | D26: Chapisco de parede, com argamassa de cimento e areia, espessura 0,5 cm, traço 1:3, aplicado com colher de pedreiro. (incluindo o interior do teto do banheiro e beiral). | E26: m2 | F26: 49.72 | G26: =F26*16 -> 795.52 | H26: 5.22 | I26: =H26*1.2158 -> 6.346476 | J26: =F26*H26 -> 259.5384 | K26: =J26*1.2158 -> 315.5467867 | L26: =K26*16 -> 5048.748588
A27: 6.2 | B27: 87530 | C27: SINAPI | D27: Massa única, para recebimento de pintura, em argamassa traço 1:2:8 (cimento, cal hidratada e areia), preparo manual, aplicada manulamente, espessura 2,0 cm, com execução de taliscas (incluindo o interior do teto do banheiro). | E27: m2 | F27: 44.4 | G27: 710.4 | H27: 42.64 | I27: =H27*1.2158 -> 51.841712 | J27: =F27*H27 -> 1893.216 | K27: 2301.772013 | L27: =K27*16 -> 36828.3522
A28: 6.3 | B28: 87530 | C28: SINAPI | D28: Massa única, para recebimento de pintura, em argamassa traço 1:2:8 (cimento, cal hidratada e areia), preparo manual, aplicada manulamente, espessura 2,0 cm, com execução de taliscas (apoio da pia de cozinha e tanque de lavar roupa). | E28: m2 | F28: 4.32 | G28: 69.12 | H28: =H27 -> 42.64 | I28: =H28*1.2158 -> 51.841712 | J28: =F28*H28 -> 184.2048 | K28: 223.9561958 | L28: 3583.299133
A29: 6.4 | B29: 87530 | C29: SINAPI | D29: Massa única, para recebimento de pintura, em argamassa traço 1:2:8 (cimento, cal hidratada e areia), preparo manual, aplicada manulamente, espessura 2,0 cm, com execução de taliscas (apoio da pia de cozinha e tanque de lavar roupa). | E29: m2 | F29: 1 | G29: 16 | H29: =H27 -> 42.64 | I29: =H29*1.2158 -> 51.841712 | J29: =F29*H29 -> 42.64 | K29: 51.841712 | L29: 829.467392
A30: 6.5 | B30: 87275 | C30: SINAPI | D30: Revestimento cerâmico para paredes internas (h=1,50 m) com placas tipo esmaltada extra de dimensões 33x45 cm, aplicadas em ambiente de área maior que 5,0 m² a meia altura das paredes. | E30: m2 | F30: 10.02 | G30: 160.32 | H30: 73.44 | I30: =H30*1.2158 -> 89.288352 | J30: =F30*H30 -> 735.8688 | K30: 894.669287 | L30: 14314.70859
A31: SUB-TOTAL | J31: =SUM(J26:J30) -> 3115.468 | K31: 3787.785994 | L31: 60604.57591
A32: 7 | D32: Esquadrias
A33: 7.1 | B33: ED-50971 | C33: SETOP | D33: Fornecimento e assentamento de porta completa, estrutura, dobradiça e marco em chapa dobrada, 60 x 210 cm. | E33: pça | F33: 1 | G33: =F33*16 -> 16 | H33: 511.32 | I33: =H33*1.2158 -> 621.662856 | J33: =F33*H33 -> 511.32 | K33: =J33*1.2158 -> 621.662856 | L33: 9946.605696
A34: 7.2 | B34: 91305 | C34: SINAPI | D34: Fechadura de embutir para porta de banheiro, completa, acabamento padrão popular, incluso execução de furo, fornecimento e instalação. | E34: pça | F34: 1 | G34: 16 | H34: 106.36 | I34: =H34*1.2158 -> 129.312488 | J34: =F34*H34 -> 106.36 | K34: =J34*1.2158 -> 129.312488 | L34: 2068.999808
A35: 7.3 | B35: 94559 | C35: SINAPI | D35: Janela de aço basculante, fixação com argamassa, sem vidros, padronizada (60x60 cm). | E35: m2 | F35: 0.36 | G35: 5.76 | H35: 745.03 | I35: =H35*1.2158 -> 905.807474 | J35: =F35*H35 -> 268.2108 | K35: =J35*1.2158 -> 326.0906906 | L35: 5217.45105
A36: 7.4 | B36: ED-51155 | C36: SETOP | D36: Vidro liso comum transparente esp. 3 mm colocado | E36: m2 | F36: 0.36 | G36: 5.76 | H36: 168.49 | I36: =H36*1.2158 -> 204.850142 | J36: =F36*H36 -> 60.6564 | K36: =J36*1.2158 -> 73.74605112 | L36: 1179.936818
A37: SUB-TOTAL | J37: =SUM(J33:J36) -> 946.5472 | K37: =J37*1.2158 -> 1150.812086 | L37: 18412.99337
A38: 8 | D38: Pisos interno e externo
A39: 8.1 | B39: 94974 | C39: SINAPI | D39: Concreto magro para lastro, traço 1:4,5:4,5 (cimento/areia média/brita1), preparo manual (contrapiso interno, esp= 6,0 cm). | E39: m³ | F39: 0.16 | G39: =F39*16 -> 2.56 | H39: 492.47 | I39: =H39*1.2158 -> 598.745026 | J39: =F39*H39 -> 78.7952 | K39: =J39*1.2158 -> 95.79920416 | L39: 1532.787267
A40: 8.2 | B40: 87246 | C40: SINAPI | D40: Revestimento cerâmico para piso com placas tipo grês, dimensões 35x35 cm, aplicada em ambiente de área menor que 5,0 m². | E40: m2 | F40: 2.63 | G40: 42.08 | H40: 66.09 | I40: =H40*1.2158 -> 80.352222 | J40: =F40*H40 -> 173.8167 | K40: =J40*1.2158 -> 211.3263439 | L40: 3381.221502
A41: 8.3 | B41: 94994 | C41: SINAPI | D41: Execução de passeio (calçada) com concreto moldado in loco, feito em obra, acabamento convencional, esp = 8 cm, armado. | E41: m2 | F41: 8.02 | G41: 128.32 | H41: 102.92 | I41: =H41*1.2158 -> 125.130136 | J41: =F41*H41 -> 825.4184 | K41: =J41*1.2158 -> 1003.543691 | L41: 16056.69905
A42: SUB-TOTAL | J42: =SUM(J39:J41) -> 1078.0303 | K42: =J42*1.2158 -> 1310.669239 | L42: 20970.70782
A43: 9 | D43: Pinturas
A44: 9.1 | B44: ED-50498 | C44: SETOP | D44: Aplicação manual de pintura com tinta látex PVA em paredes - duas demãos | E44: m² | F44: 49.72 | G44: =F44*16 -> 795.52 | H44: 16.76 | I44: =H44*1.2158 -> 20.376808 | J44: =F44*H44 -> 833.3072 | K44: =J44*1.2158 -> 1013.134894 | L44: =K44*16 -> 16210.1583
A45: 9.2 | B45: ED-50491 | C45: SETOP | D45: Pintura de esquadrias em esmalte sintético - duas demãos, incluindo uma demão de fundo anticorrosivo (porta e janela). | E45: m2 | F45: 3.28 | G45: 52.48 | H45: 35.41 | I45: =H45*1.2158 -> 43.051478 | J45: =F45*H45 -> 116.1448 | K45: =J45*1.2158 -> 141.2088478 | L45: 2259.341565
A46: SUB-TOTAL | J46: =J44+J45 -> 949.452 | K46: =J46*1.2158 -> 1154.343742 | L46: 18469.49987
A47: 10 | D47: Instalações elétricas
A48: 10.1 | B48: ED-50227 | C48: SETOP | D48: Ponto de embutir para um (1) interruptor simples (10a 250v), com placa 4"x2" de um (1) posto, com eletroduto flexível corrugado, antichama, dn 25mm (3/4"), embutido na alvenaria e cabo de cobre flexível, classe 5, isolamento tipo lshf/atox, não halogenado, seção 1, 5mm2 (70°c-450/750v), com distância de até dez (10) metros do ponto de derivação, inclusive caixa de ligação, suporte e fixação do eletroduto com enchimento do rasgo na alvenaria/concreto com argamassa | E48: unidade | F48: 1 | G48: =F48*16 -> 16 | H48: 249.86 | I48: =H48*1.2158 -> 303.779788 | J48: =F48*H48 -> 249.86 | K48: =J48*1.2158 -> 303.779788 | L48: =K48*16 -> 4860.476608
A49: 10.2 | B49: 91926 | C49: SINAPI | D49: Cabo de cobre flexível isolado, 2,5 mm², anti-chama 450/750 V, para circuitos terminais - fornecimento e instalação | E49: m | F49: 4.75 | G49: 76 | H49: 4.47 | I49: =H49*1.2158 -> 5.434626 | J49: =F49*H49 -> 21.2325 | K49: =J49*1.2158 -> 25.8144735 | L49: 413.031576
A50: 10.3 | B50: 97610 | C50: SINAPI | D50: Lâmpada compacta de Led 10 W, base E27 | E50: unidade | F50: 1 | G50: 16 | H50: 14.8 | I50: =H50*1.2158 -> 17.99384 | J50: =F50*H50 -> 14.8 | K50: =J50*1.2158 -> 17.99384 | L50: 287.90144
A51: SUB-TOTAL | J51: =SUM(J48:J50) -> 285.8925 | K51: =J51*1.2158 -> 347.5881015 | L51: 5561.409624
A52: 11 | D52: Instalações hidrossanitárias
A53: 11.1 | B53: 86943 | C53: SINAPI | D53: Fornecimento e instalação de lavatório em louça branca, suspenso, incluso sifão flexível em PVC, válvula e engate flexível plástico de 30 cm, com torneira cromada de mesa. | E53: unidade | F53: 1 | G53: =F53*16 -> 16 | H53: 266.9 | I53: =H53*1.2158 -> 324.49702 | J53: =F53*H53 -> 266.9 | K53: =J53*1.2158 -> 324.49702 | L53: =K53*16 -> 5191.95232
A54: 11.2 | B54: 86888 | C54: SINAPI | D54: Vaso sanitário sifonado com caixa acoplada louça branca - Fornecimento e instalação. AF_01/2020 | E54: unidade | F54: 1 | G54: 16 | H54: 497.98 | I54: =H54*1.2158 -> 605.444084 | J54: =F54*H54 -> 497.98 | K54: =J54*1.2158 -> 605.444084 | L54: 9687.105344
A55: 11.3 | B55: 36790 | C55: SINAPI-I | D55: Tanque duplo de lavar roupa em mármore sintético com cuba lisa e esfregador 60 x 120 cm. | E55: unidade | F55: 1 | G55: 16 | H55: 300.5 | I55: =H55*1.2158 -> 365.3479 | J55: =F55*H55 -> 300.5 | K55: =J55*1.2158 -> 365.3479 | L55: 5845.5664
A56: 11.4 | B56: ED-50013 | C56: SETOP | D56: Fornecimento e instalação de caixa de espuma em PVC, 250x230x75mm, tubo de PVC 50 mm e tampa e porta tampa. | E56: unidade | F56: 1 | G56: 16 | H56: 146.35 | I56: 177.93233 | J56: 146.35 | K56: 177.93233 | L56: 2846.91728
A57: 11.5 | B57: 86934 | C57: SINAPI | D57: Fornecimento e instalação de pia de cozinha de marmorite sintético (1,20 X 0,60 m), incluindo torneira cromada de 1/2 ", válvula em plástico branco, sifão de plástico. | E57: unidade | F57: 1 | G57: 16 | H57: 423.51 | I57: 514.903458 | J57: 423.51 | K57: 514.903458 | L57: 8238.455328
A58: 11.6 | B58: ED-50013 | C58: SETOP | D58: Fornecimento e instalação de caixa de gordura em PVC, 250x230x75mm, tubo de PVC 50 mm e tampa e porta tampa. | E58: unidade | F58: 1 | G58: 16 | H58: 146.35 | I58: 177.93233 | J58: 146.35 | K58: 177.93233 | L58: 2846.91728
A59: 11.7 | B59: 34637 | C59: SINAPI | D59: Fornecimento e instalação de caixa d`água de polietileno com tampa, capacidade 500 litros, sem acessórios. | E59: unidade | F59: 1 | G59: 16 | H59: 296.54 | I59: 360.533332 | J59: 296.54 | K59: 360.533332 | L59: 5768.533312
A60: 11.8 | B60: 94975 | C60: SINAPI | D60: Base de sustentação da caixa d`água (1,00 x 1,00 x 0,05 m) concreto armado FCK - 15 Mpa, preparo manual | E60: m3 | F60: 0.05 | G60: 0.8 | H60: 528.71 | I60: 642.805618 | J60: 26.4355 | K60: 32.1402809 | L60: 514.2444944
A61: 11.9 | B61: 100860 | C61: SINAPI | D61: Fornecimento e instalação de chuveiro elétrico com corpo de plástico simples | E61: unidade | F61: 1 | G61: 16 | H61: 102.17 | I61: 124.218286 | J61: 102.17 | K61: 124.218286 | L61: 1987.492576
A62: 11.10 | B62: ED-49878 | C62: SETOP | D62: Caixa de esgoto de inspeção/passagem em alvenaria (50x50x45cm), revestimento em argamassa com aditivo impermeabilizante, com tampa de concreto, inclusive escavação, reaterro e retirada do material escavado. | E62: Unidade | F62: 1 | G62: 16 | H62: 293.86 | I62: 357.274988 | J62: 293.86 | K62: 357.274988 | L62: 5716.399808
A63: 11.11 | B63: 94650 | C63: SINAPI | D63: Fornecimento e instalação de tubo de PVC, série normal, esgoto predial, DN 40 mm, instalado na caixa de inspeção, junto à parede do banheiro, em prumada de ventilação. | E63: m | F63: 3 | G63: 48 | H63: 18.39 | I63: 22.358562 | J63: 55.17 | K63: 67.075686 | L63: 1073.210976
A64: 11.12 | B64: Composição | C64: SINAPI | D64: Instalação hidro-sanitária do módulo - conforme composição anexa. | E64: unidade | F64: 1 | G64: 16 | H64: 886.34 | I64: 1077.612172 | J64: 886.34 | K64: 1077.612172 | L64: 17241.79475
A65: SUB-TOTAL | J65: =SUM(J53:J64) -> 3442.1055 | K65: =J65*1.2158 -> 4184.911867 | L65: 66958.58987
A66: 12 | D66: Tanque séptico
A67: 12.1 | B67: ED-51108 | C67: SETOP | D67: =PROPER("ESCAVAÇÃO MANUAL DE VALAS 1,50 M < H <= 3,00 M") -> Escavação Manual De Valas 1,50 M < H <= 3,00 M | E67: m3 | F67: 5 | G67: =F67*16 -> 80 | H67: 101.95 | I67: =H67*1.2158 -> 123.95081 | J67: =F67*H67 -> 509.75 | K67: =J67*1.2158 -> 619.75405 | L67: =K67*16 -> 9916.0648
A68: 12.2 | B68: ED-29582 | C68: SETOP | D68: Armadura de tela de aço soldada nervurada Q-138, aço CA-60, 4,2mm, malha 15X15cm para o piso (fundo) | E68: m² | F68: 1.62 | G68: 25.92 | H68: 27.24 | I68: 33.118392 | J68: =F68*H68 -> 44.1288 | K68: 53.65179504 | L68: 858.4287206
A69: 12.3 | B69: 94975 | C69: SINAPI | D69: Piso (fundo) em concreto FCK 15 Mpa, traço 1:3,4:3,5 (cimento/areia média/brita 1) | E69: m3 | F69: 0.33 | G69: 5.28 | H69: 528.71 | I69: 642.805618 | J69: 174.4743 | K69: 212.1258539 | L69: 3394.013663
A70: 12.4 | B70: ED-48231 | C70: SINAPI | D70: Alvenaria de vedação com tijolo cerâmico furado, Esp.9 cm, para revestimento, inclusive argamassa para assentamento. | E70: m2 | F70: 9.28 | G70: 148.48 | H70: 57.1 | I70: 69.42218 | J70: 529.888 | K70: 644.2378304 | L70: 10307.80529
A71: 12.5 | B71: 87878 | C71: SINAPI | D71: Chapisco de parede, com argamassa de cimento e areia, espessura 0,5 cm, traço 1:3, aplicado com colher de pedreiro | E71: m2 | F71: 8.64 | G71: 138.24 | H71: 5.22 | I71: 6.346476 | J71: 45.1008 | K71: 54.83355264 | L71: 877.3368422
A72: 12.6 | B72: 87530 | C72: SINAPI | D72: Massa única, para recebimento de pintura, em argamassa traço 1:2:8, preparo manual, aplicada manulamente, espessura 2,0 cm, com execução de taliscas | E72: m2 | F72: 8.64 | G72: 138.24 | H72: 42.64 | I72: 51.841712 | J72: 368.4096 | K72: 447.9123917 | L72: 7166.598267
A73: 12.7 | B73: 89714 | C73: SINAPI | D73: Tubo de PVC, série normal, esgoto predial, DN 100 mm, fornecido e instalado em ramal de descarga ou ramal de esgoto sanitário | E73: m | F73: 6 | G73: 96 | H73: 40.11 | I73: 48.765738 | J73: 240.66 | K73: 292.594428 | L73: 4681.510848
A74: 12.8 | B74: 89796 | C74: SINAPI | D74: Fornecimento e assentamento de T de PVC esgoto de 100mm | E74: Unidade | F74: 2 | G74: 32 | H74: 43.15 | I74: 52.46177 | J74: 86.3 | K74: 104.92354 | L74: 1678.77664
A75: 12.9 | B75: 94975 | C75: SINAPI | D75: Placa de contenção pré-fabricada de concreto, medidias 1,00x0,60x0,05 m para direcionamento do esgoto para o fundo, conforme desenho. | E75: m3 | F75: 0.03 | G75: 0.48 | H75: 528.71 | I75: 642.805618 | J75: 15.8613 | K75: 19.28416854 | L75: 308.5466966
A76: 12.10 | B76: 92423 | C76: SINAPI | D76: Montagem e desmontagem de forma para confecção da tampa com área média das seções maior que 0,25 m², em chapa de madeira compensada resinada , 6 utilizações | E76: m² | F76: 2 | G76: 32 | H76: 75.04 | I76: 91.233632 | J76: 150.08 | K76: 182.467264 | L76: 2919.476224
A77: 12.11 | B77: ED-29582 | C77: SETOP | D77: Armadura de tela de aço soldada nervurada Q-138, aço CA-60, 4,2mm, malha 15X15cm para a tampa | E77: m² | F77: 2.2 | G77: 35.2 | H77: 27.24 | I77: 33.118392 | J77: 59.928 | K77: 72.8604624 | L77: 1165.767398
A78: 12.12 | B78: 94975 | C78: SINAPI | D78: Tampas em placas pré-moldadas em concreto armado FCK-15Mpa esp. 7 cm | E78: m3 | F78: 0.15 | G78: 2.4 | H78: 528.71 | I78: 642.805618 | J78: 79.3065 | K78: 96.4208427 | L78: 1542.733483
A79: SUB-TOTAL | J79: =SUM(J67:J78) -> 2303.8873 | K79: =J79*1.2158 -> 2801.066179 | L79: 44817.05887
A80: 13 | D80: Filtro anaeróbico
A81: 13.1 | B81: ED-51108 | C81: SETOP | D81: =PROPER("ESCAVAÇÃO MANUAL DE VALAS 1,50 M < H <= 3,00 M") -> Escavação Manual De Valas 1,50 M < H <= 3,00 M | E81: m³ | F81: 3 | G81: =F81*16 -> 48 | H81: 101.95 | I81: =H81*1.2158 -> 123.95081 | J81: =F81*H81 -> 305.85 | K81: =J81*1.2158 -> 371.85243 | L81: =K81*16 -> 5949.63888
A82: 13.2 | B82: 94975 | C82: SINAPI | D82: Alvenaria de vedação em concreto armado, espessura 10 cm | E82: m³ | F82: 0.66 | G82: 10.56 | H82: 528.71 | I82: 642.805618 | J82: =F82*H82 -> 348.9486 | K82: 424.2517079 | L82: 6788.027326
A83: 13.3 | B83: 32 | C83: SINAPI | D83: Aço CA 50, 6,3 mm para alvenaria de vedação | E83: Kg | F83: 21.44 | G83: 343.04 | H83: 8.16 | I83: 9.920928 | J83: 174.9504 | K83: 212.7046963 | L83: 3403.275141
A84: 13.4 | B84: ED-48298 | C84: SETOP | D84: Corte, dobra e montagem de aço CA-50, 6,3 mm | E84: Kg | F84: 21.44 | G84: 343.04 | H84: 13.96 | I84: 16.972568 | J84: 299.3024 | K84: 363.8918579 | L84: 5822.269727
A85: 13.5 | B85: 98562 | C85: SINAPI | D85: Impermeabilização de superficie com argamasa de cimento e areia grossa, traço 1:4, com aditivo impermeabilizante, espessura = 1,50 cm. | E85: m2 | F85: 6.59 | G85: 105.44 | H85: 53.04 | I85: 64.486032 | J85: 349.5336 | K85: 424.9629509 | L85: 6799.407214
A86: 13.6 | B86: 92423 | C86: SINAPI | D86: Montagem e desmontagem de forma para confecção da tampa com área média das seções maior que 0,25 m², em chapa de madeira compensada resinada , 6 utilizações | E86: m² | F86: 1.54 | G86: 24.64 | H86: 75.04 | I86: 91.233632 | J86: 115.5616 | K86: 140.4997933 | L86: 2247.996692
A87: 13.7 | B87: ED-29582 | C87: SETOP | D87: Armadura de tela de aço soldada nervurada Q-138, aço CA-60, 4,2mm, malha 15X15cm para a tampa | E87: m² | F87: 1.54 | G87: 24.64 | H87: 27.24 | I87: 33.118392 | J87: 41.9496 | K87: 51.00232368 | L87: 816.0371789
A88: 13.8 | B88: 94975 | C88: SINAPI | D88: Execução de tampa em concreto armado FCK-15Mpa, espessura 5 cm | E88: m3 | F88: 0.08 | G88: 1.28 | H88: 528.71 | I88: 642.805618 | J88: 42.2968 | K88: 51.42444944 | L88: 822.791191
A89: 13.9 | B89: 89829 | C89: SINAPI | D89: TE, PVC, série normal, esgoto predial, DN 75 x 75 mm, junta soldável, fornecido em ramal de descarga, ou ramal de esgoto sanitário. | E89: Unidade | F89: 2 | G89: 32 | H89: 35.82 | I89: 43.549956 | J89: 71.64 | K89: 87.099912 | L89: 1393.598592
A90: 13.10 | B90: 89808 | C90: SINAPI | D90: Curva longa, 90 graus, PVC, série normal, esgoto predial, DN 75 mm, junta elástica, fornecido em prumada de esgoto predial ou ventilação | E90: Unidade | F90: 1 | G90: 16 | H90: 57.92 | I90: 70.419136 | J90: 57.92 | K90: 70.419136 | L90: 1126.706176
A91: 13.11 | B91: 89713 | C91: SINAPI | D91: Tubo PVC Série Normal, esgoto predial, DN 75 mm, fornecido em ramal de descarga ou ramal de esgoto sanitário | E91: m | F91: 4 | G91: 64 | H91: 35.81 | I91: 43.537798 | J91: 143.24 | K91: 174.151192 | L91: 2786.419072
A92: 13.12 | B92: 12910 | C92: SINAPI | D92: CAP PVC, Soldável, DN 75 mm, Série normal, para esgoto predial | E92: Unidade | F92: 1 | G92: 16 | H92: 8 | I92: 9.7264 | J92: 8 | K92: 9.7264 | L92: 155.6224
A93: 13.13 | B93: 297 | C93: SINAPI | D93: Anel de borracha para tubo de esgoto predial DN 75 mm (NBR 5688) | E93: Unidade | F93: 6 | G93: 96 | H93: 2.42 | I93: 2.942236 | J93: 14.52 | K93: 17.653416 | L93: 282.454656
A94: 13.14 | B94: ED-29582 | C94: SETOP | D94: Armadura de tela de aço soldada nervurada Q-138, aço CA-60, 4,2mm, malha 10X10cm para a base das calha | E94: m² | F94: 0.5 | G94: 8 | H94: 27.24 | I94: 33.118392 | J94: 13.62 | K94: 16.559196 | L94: 264.947136
A95: 13.15 | B95: ED-48229 | C95: SETOP | D95: Calha em alvenaria de tijolo cerâmico maciço 5x10x20 (largura 10 cm) assentado com argamassa traço 1:2:8 (cimento, cal e areia), para escoamento do efluente para o sumidouro | E95: m² | F95: 0.26 | G95: 4.16 | H95: 142.15 | I95: 172.82597 | J95: 36.959 | K95: 44.9347522 | L95: 718.9560352
A96: 13.16 | B96: 87878 | C96: SINAPI | D96: Chapisco de parede, com argamassa de cimento e areia, espessura 0,5 cm, traço 1:3, aplicado com colher de pedreiro | E96: m² | F96: 0.52 | G96: 8.32 | H96: 5.22 | I96: 6.346476 | J96: 2.7144 | K96: 3.30016752 | L96: 52.80268032
A97: 13.17 | B97: 87530 | C97: SINAPI | D97: Massa única, para recebimento de pintura, em argamassa traço 1:2:8, preparo manual, aplicada manulamente, espessura 2,0 cm, com execução de taliscas | E97: m² | F97: 0.52 | G97: 8.32 | H97: 42.64 | I97: 51.841712 | J97: 22.1728 | K97: 26.95769024 | L97: 431.3230438
A98: 13.18 | B98: 94975 | C98: SINAPI | D98: Placa de concreto Fck = 15 Mpa para a base da calha, 5x36x130 (espessura 5 cm), conforme desenho | E98: m³ | F98: 0.02 | G98: 0.32 | H98: 528.71 | I98: 642.805618 | J98: 10.5742 | K98: 12.85611236 | L98: 205.6977978
A99: 13.19 | B99: 73873/002 (RT-Jan/2020 | C99: SINAPI | D99: Leito filtrante - fornecimento e enchimento com brita N° 4 | E99: m³ | F99: 1.13 | G99: 18.08 | H99: 170.84 | I99: 207.707272 | J99: 193.0492 | K99: 234.7092174 | L99: 3755.347478
A100: 13.20 | B100: 94975 | C100: SINAPI | D100: Execução de fundo em concreto armado FCK-15 Mpa, espessura 6 cm, conforme desenho. | E100: m³ | F100: 0.09 | G100: 1.44 | H100: 528.71 | I100: 642.805618 | J100: 47.5839 | K100: 57.85250562 | L100: 925.6400899
A101: 13.21 | B101: ED-29582 | C101: SETOP | D101: Armadura de tela de aço soldada nervurada Q-138, aço CA-60, 4,2mm, malha 15X15cm para o fundo do filtro | E101: m³ | F101: 1.54 | G101: 24.64 | H101: 27.24 | I101: 33.118392 | J101: 41.9496 | K101: 51.00232368 | L101: 816.0371789
A102: 13.22 | B102: 94975 | C102: SINAPI | D102: Execução da placa perfurada, com furos de diâmetro 3/4" a cada 15 cm, confeccionada em concreto armado, 7 cm de espessura, conforme detalhamento no projeto | E102: M³ | F102: 0.11 | G102: 1.76 | H102: 528.71 | I102: 642.805618 | J102: 58.1581 | K102: 70.70861798 | L102: 1131.337888
A103: 13.23 | B103: 32 | C103: SINAPI | D103: Aço CA 50, 6,3 mm para alvenaria de vedação | E103: Kg | F103: 4.5 | G103: 72 | H103: 8.16 | I103: 9.920928 | J103: 36.72 | K103: 44.644176 | L103: 714.306816
A104: 13.24 | B104: ED-48298 | C104: SETOP | D104: Corte, dobra e montagem de aço CA-50, 6,3 mm | E104: Kg | F104: 4.5 | G104: 72 | H104: 13.96 | I104: 16.972568 | J104: 62.82 | K104: 76.376556 | L104: 1222.024896
A105: 13.25 | B105: 90696 | C105: SINAPI | D105: Tubo PVC Série Normal, esgoto predial, DN 200 mm (tubo guia para limpeza) | E105: m | F105: 1.3 | G105: 20.8 | H105: 144.77 | I105: 176.011366 | J105: 188.201 | K105: 228.8147758 | L105: 3661.036413
A106: SUB-TOTAL | J106: =SUM(J81:J105) -> 2688.2352 | K106: =J106*1.2158 -> 3268.356356 | L106: 52293.7017
A107: 14 | D107: Sumidouro
A108: 14.1 | B108: ED-51108 | C108: SETOP | D108: =PROPER("ESCAVAÇÃO MANUAL DE VALAS 1,50 M < H <= 3,00 M") -> Escavação Manual De Valas 1,50 M < H <= 3,00 M | E108: m3 | F108: 2.94 | G108: =F108*16 -> 47.04 | H108: 101.95 | I108: =H108*1.2158 -> 123.95081 | J108: =F108*H108 -> 299.733 | K108: =J108*1.2158 -> 364.4153814 | L108: =K108*16 -> 5830.646102
A109: 14.2 | B109: ED-48227 | C109: SETOP | D109: Alvenaria de tijolo cerâmico maciço (5x10x20 cm), 1/2 vez (10 cm), junta aberta, assentado com argamassa traço 1:2:8 (cimento, cal e areia) | E109: m2 | F109: 7.54 | G109: 120.64 | H109: 138.72 | I109: 168.655776 | J109: =F109*H109 -> 1045.9488 | K109: 1271.664551 | L109: 20346.63282
A110: 14.3 | B110: 7765 | C110: SINAPI | D110: Fornecimento e assentamento de tubo de concreto armado, classe PA-2, PB DN 1000 mm, para águas pluviais (NBR 8890) | E110: m | F110: 0.5 | G110: 8 | H110: 437.14 | I110: 531.474812 | J110: 218.57 | K110: 265.737406 | L110: 4251.798496
A111: 14.4 | B111: 89737 | C111: SINAPI | D111: Joelho 90 graus, PVC, série normal, esgoto predial, DN 75 mm, junta elástica, fornecido e instalado em ramal de descarga ou ramal de esgoto sanitário. | E111: Unidade | F111: 1 | G111: 16 | H111: 22.72 | I111: 27.622976 | J111: 22.72 | K111: 27.622976 | L111: 441.967616
A112: 14.5 | B112: 92423 | C112: SINAPI | D112: Montagem e desmontagem de forma para confecção da tampa com área média das seções maior que 0,25 m², em chapa de madeira compensada resinada , 6 utilizações | E112: m² | F112: 1.13 | G112: 18.08 | H112: 75.04 | I112: 91.233632 | J112: 84.7952 | K112: 103.0940042 | L112: 1649.504067
A113: 14.6 | B113: ED-29582 | C113: SETOP | D113: Armadura de tela de aço soldada nervurada Q-138, aço CA-60, 4,2mm, malha 15X15cm para a tampa | E113: m² | F113: 1.13 | G113: 18.08 | H113: 27.24 | I113: 33.118392 | J113: 30.7812 | K113: 37.42378296 | L113: 598.7805274
A114: 14.7 | B114: 94975 | C114: SINAPI | D114: Tampa em concreto armado FCK-15Mpa esp. 7 cm | E114: m3 | F114: 0.08 | G114: 1.28 | H114: 528.71 | I114: 642.805618 | J114: 42.2968 | K114: 51.42444944 | L114: 822.791191
A115: 14.8 | B115: ED-49813 | C115: SETOP | D115: Fornecimento e colocação Berço de brita no 2 – camada de 50 cm | E115: m3 | F115: 0.39 | G115: 6.24 | H115: 197.39 | I115: 239.986762 | J115: 76.9821 | K115: 93.59483718 | L115: 1497.517395
A116: SUB-TOTAL | J116: =SUM(J108:J115) -> 1821.8271 | K116: =J116*1.2158 -> 2214.977388 | L116: 35439.63821
A117: TOTAL SEM B.D.I. | J117: =SUM(J8+J12+J16+J19+J24+J31+J37+J42+J46+J51+J65+J79+J106+J116) -> 20498.9527
A118: VALOR ACRESCIDO DE B.D.I.(21,58%) | J118: =J117*0.2158 -> 4423.673993
A119: TOTAL DE CADA MÓDULO | J119: =J117+J118 -> 24922.62669 | K119: TOTAL COM TODOS OS MÓDULOS | L119: =L8+L12+L16+L19+L24+L31+L37+L42+L46+L51+L65+L79+L106+L116 -> 398762.0271

Sheet Composição
A1: PREFEITURA MUNICIPAL DE xxxxxxxxxxxxxx
B2: INSTALAÇÃO HIDROSANITÁRIA DO MÓDULO
B3: SINAPI INSUMOS - Fevereiro/2025
A4: 1 | B4: Instalação hidráulica | C4: Unidade | D4: Quantidade Prevista | E4: Valor Unitário | F4: Valor Total Sem BDI | G4: Código SINAPI
A5: 1.1 | B5: Entrada d`água no reservatório
A6: 1.1.1 | B6: Tee PVC SOLD 90G p/ água fria predial de 20 mm | C6: und | D6: 1 | E6: 1 | F6: =D6*E6 -> 1 | G6: 7138
A7: 1.1.2 | B7: Tubo de PVC rígido soldável PB - água fria predial 20mm | C7: m | D7: 12 | E7: 3.47 | F7: 41.64 | G7: 9867
A8: 1.1.3 | B8: Adaptador de PVC rígido com rosca e flange para caixa d`água - 20mm | C8: und | D8: 2 | E8: 15.35 | F8: 30.7 | G8: 000067
A9: 1.1.5 | B9: Joelho PVC SOLD 90G p/ água fria predial de 20mm | C9: und | D9: 4 | E9: 0.56 | F9: 2.24 | G9: 3542
A10: 1.1.6 | B10: Torneira bóia em metal com balão plástico e haste metálica de 1/2' | C10: und | D10: 1 | E10: 24.73 | F10: 24.73 | G10: 11829
A11: 1.1.7 | B11: Luva PVC soldável e com rosca p/água fria predial 20mm | C11: und | D11: 1 | E11: 1.44 | F11: 1.44 | G11: 003883
A12: SUB-TOTAL | F12: =SUM(F6:F11) -> 101.75
A13: 1.2 | B13: Saída d`água do reservatório
A14: 1.2.1 | B14: Tubo de PVC rígido soldável PB - água fria predial 25mm | C14: m | D14: 6 | E14: 3.92 | F14: =D14*E14 -> 23.52 | G14: 9868
A15: 1.2.2 | B15: Registro de gaveta 3/4" bruto de metal | C15: und | D15: 1 | E15: 49.01 | F15: =D15*E15 -> 49.01 | G15: 6016
A16: 1.2.3 | B16: Joelho PVC com rosca 90G p/ água fria predial 25mm | C16: und | D16: 1 | E16: 2.47 | F16: =D16*E16 -> 2.47 | G16: 3505
A17: 1.2.4 | B17: Adaptador de PVC rígido com rosca e flange longo para caixa d`água - 25mm | C17: und | D17: 1 | E17: 14.69 | F17: =D17*E17 -> 14.69 | G17: 000073
A18: 1.2.5 | B18: Joelho PVC SOLD 90G p/ água fria predial de 25mm | C18: und | D18: 1 | E18: 0.69 | F18: =D18*E18 -> 0.69 | G18: 3529
A19: SUB-TOTAL | F19: =SUM(F14:F18) -> 90.38
A20: 1.3 | B20: No chuveiro
A21: 1.3.1 | B21: Tee PVC SOLD 90G p/ água fria predial de 25 mm | C21: und | D21: 1 | E21: 1.13 | F21: =D21*E21 -> 1.13 | G21: 7139
A22: 1.3.2 | B22: Tubo de PVC rígido soldável PB - água fria predial 25mm | C22: m | D22: 6 | E22: =E14 -> 3.92 | F22: 23.52 | G22: 9868
A23: 1.3.2 | B23: Joelho PVC SOLD 90G p/ água fria predial de 25mm | C23: und | D23: 3 | E23: =E18 -> 0.69 | F23: 2.07 | G23: 3529
A24: 1.3.3 | B24: Luva PVC soldável e com rosca p/água fria predial 25mm | C24: und | D24: 1 | E24: 2.28 | F24: 2.28 | G24: 3884
A25: 1.3.4 | B25: Registro de pressão 1/2" bruto de metal | C25: und | D25: 1 | E25: 32.93 | F25: 32.93 | G25: 11752
A26: 1.3.5 | B26: Caixa sifonada PVC 150x150x50 mm quadrado, com grelha | C26: und | D26: 1 | E26: 40.2 | F26: 40.2 | G26: 11712
A27: SUB-TOTAL | F27: =SUM(F21:F26) -> 102.13
A28: 2 | B28: Instalação sanitária
A29: 2.1 | B29: Tanque de lavar roupa
A30: 2.1.1 | B30: Tubo PVC 40 mm | C30: m | D30: 3 | E30: 6.47 | F30: =D30*E30 -> 19.41 | G30: 9835
A31: 2.1.2 | B31: Joelho PVC 40 mm | C31: unid. | D31: 3 | E31: 2.1 | F31: =D31*E31 -> 6.3 | G31: 3517
A32: 2.1.3 | B32: Tee de PVC 40 mm | C32: unid. | D32: 1 | E32: 3.66 | F32: =D32*E32 -> 3.66 | G32: 7116
A33: 2.1.4 | B33: Luva solda/rosca 25 mm/1/2" | C33: unid. | D33: 2 | E33: 1.73 | F33: =D33*E33 -> 3.46 | G33: 3856
A34: 2.1.5 | B34: Torneira de metal de 1/2" | C34: unid. | D34: 2 | E34: 40.23 | F34: =D34*E34 -> 80.46 | G34: 7603
A35: SUB-TOTAL | F35: =SUM(F30:F34) -> 113.29
A36: 2.2 | B36: Pia de cozinha
A37: 2.2.1 | B37: Tubo PVC 40 mm | C37: m | D37: 3 | E37: =E30 -> 6.47 | F37: =D37*E37 -> 19.41 | G37: 9835
A38: 2.2.2 | B38: Joelho PVC 40 mm | C38: unid. | D38: 1 | E38: =E31 -> 2.1 | F38: =D38*E38 -> 2.1 | G38: 3517
A39: 2.2.3 | B39: Tee de PVC 40 mm | C39: unid. | D39: 1 | E39: =E32 -> 3.66 | F39: =D39*E39 -> 3.66 | G39: 7116
A40: 2.2.4 | B40: Luva solda/rosca 25 mm/1/2" | C40: unid. | D40: 1 | E40: =E33 -> 1.73 | F40: =D40*E40 -> 1.73 | G40: 3856
A41: SUB-TOTAL | F41: =SUM(F37:F40) -> 26.9
A42: 2.3 | B42: Lavatório
A43: 2.3.1 | B43: Tubo PVC 40 mm | C43: m | D43: 3 | E43: =E30 -> 6.47 | F43: =D43*E43 -> 19.41 | G43: 9835
A44: 2.3.2 | B44: Joelho PVC 40 mm | C44: unid. | D44: 1 | E44: =E31 -> 2.1 | F44: =D44*E44 -> 2.1 | G44: 3517
A45: SUB-TOTAL | F45: =SUM(F43:F44) -> 21.51
A46: 2.4 | B46: Vaso sanitário
A47: 2.4.1 | B47: Tubo PVC 100 mm | C47: m | D47: 6 | E47: 14.82 | F47: =D47*E47 -> 88.92 | G47: 9836
A48: 2.4.2 | B48: Joelho PVC 100 mm | C48: unid. | D48: 1 | E48: 9.09 | F48: =D48*E48 -> 9.09 | G48: 3528
A49: 2.4.3 | B49: Tee PVC 100 mm | C49: unid. | D49: 1 | E49: 15.91 | F49: 15.91 | G49: 7091
A50: 2.4.4 | B50: Parafuso castelo | C50: Unid. | D50: 2 | E50: 5.33 | F50: 10.66 | G50: 11955
A51: 2.4.5 | B51: Tê PVC soldável 90 G, para água fria predial, 20 mm | C51: Unid. | D51: 1 | E51: 1 | F51: 1 | G51: 7138
A52: 2.4.6 | B52: Joelho de PVC esgoto 20 mm | C52: Unid. | D52: 1 | E52: 1.07 | F52: 1.07 | G52: 3499
A53: 2.4.7 | B53: Adaptador curto 20 mm | C53: Unid. | D53: 1 | E53: 0.77 | F53: 0.77 | G53: 000107
A54: SUB-TOTAL | F54: =SUM(F47:F53) -> 127.42
A55: 3 | B55: Mão de Obra
A56: 3.1 | B56: Encanador ou bombeiro hidráulico | C56: hora | D56: 8 | E56: 21.57 | F56: =D56*E56 -> 172.56 | G56: 2696
A57: 3.2 | B57: Ajudante de instalador hidráulico | C57: hora | D57: 8 | E57: 16.3 | F57: =D57*E57 -> 130.4 | G57: 6127
A58: SUB-TOTAL | F58: =SUM(F56:F57) -> 302.96
A59: TOTAL SEM B.D.I. | F59: =SUM(F12,F19,F27,F35,F41,F45,F54,F58) -> 886.34

Sheet Placa de obras
A1: Prefeitura Municipal de xxxxxxxxxxxxxxx
A3: PLANILHA ORÇAMENTÁRIA DE CUSTOS
A4: PLACA DE OBRA EM CHAPA GALVANIZADA COM PINTURA ESMALTE
E6: SEINFRA/Jan/2025
D7: FORMA DE EXECUÇÃO:
D8: ( ) | E8: DIRETA | F8: ( x ) | G8: INDIRETA
F9: BDI | G9: 0.2158
A10: OBRA: | B10: Melhorias sanitárias Domiciliares
A11: ITEM | B11: Cód. SETOP | C11: DESCRIÇÃO | D11: UND | E11: QUANT | F11: PREÇO
F12: UNIT. | G12: TOTAL
A14: 1 | C14: PLACA DE OBRA PADRÃO FUNASA
A15: 1.1 | B15: ED-28427 | C15: FORNECIMENTO E COLOCAÇÃO DE PLACA DE OBRA EM CHAPA GALVANIZADA (3,00 X 1,5 0 M) - EM CHAPA GALVANIZADA 0,26 AFIXADAS COM REBITES 540 E PARAFUSOS 3/8, EM ESTRUTURA METÁLICA VIGA U 2" ENRIJECIDA COM METALON 20 X 20, SUPORTE EM EUCALIPTO AUTOCLAVADO PINTADO COM TINTA PVA DUAS (2) DEMÃOS | D15: Unid | E15: 1 | F15: 1018.19 | G15: =ROUND(E15*F15,2) -> 1018.19
G16: =SUM(G15) -> 1018.19
C17: B.D.I | G17: =G15*0.2158 -> 219.725402
A18: TOTAL COM BDI | G18: =SUM(G16+G17) -> 1237.915402

Sheet Resumo
A2: RESUMO DAS PLANILHAS ORÇAMENTÁRIAS
A4: Prefeitura Municipal de
A5: Convênio:
A10: Melhorias Sanitárias Domiciliares
A11: Discriminação | B11: Unidade | C11: Quantidade | D11: Valor Unitário | E11: Valor Total
A12: Melhorias Sanitárias com esgoto ligado à tanque séptico, filtro anaeróbio e sumidouro | B12: Unidade | C12: 16 | D12: 24922.63 | E12: =C12*D12 -> 398762.08
A13: Placa de obras | B13: Unidade | C13: 1 | D13: ='Placa de obras'!G18 -> 1237.915402 | E13: =C13*D13 -> 1237.915402
A14: TOTAL | B14: - | C14: - | D14: - | E14: =SUM(E12:E13) -> 399999.9954
E15: 400000
D16: AL (3,49%) | E16: 13960 | F16: =E16/C12 -> 872.5

Sheet Crono
A2: Prefeitura Municipal de
A3: Convênio:
A6: Melhorias Sanitárias Domiciliares
A8: Cronograma Físico-Financeiro
A10: Item | B10: Descrição | C10: c | O10: TOTAL
C11: Mês 1 | D11: Mês 2 | E11: Mês 3 | F11: Mês 4 | G11: Mês 5 | H11: Mês 6 | I11: Mês 7 | J11: Mês 8 | K11: Mês 9 | L11: Mês 10 | M11: Mês 11 | N11: Mês 12
A12: 1 | B12: Placa de Obras modelo FUNASA
B13: Físico | C13: 1 | O13: =C13 -> 1
B14: Financeiro | C14: =Resumo!E13 -> 1237.915402 | O14: =C14 -> 1237.915402
B15: Percentual | C15: =C14/O29 -> 0.004639865167 | O15: =C15 -> 0.004639865167
A16: 2 | B16: Módulos Sanitários ligados a Tanque séptico, Filtro Anaeróbio e Sumidouro
B17: Físico | C17: 2 | D17: 1 | E17: 1 | F17: 2 | G17: 1 | H17: 1 | I17: 2 | J17: 1 | K17: 1 | L17: 1 | M17: 1 | N17: 1 | O17: 16
B18: Financeiro | C18: =C17*[1]RESUMO!D4 -> 0 | D18: =D17*[1]RESUMO!D4 -> 0 | E18: =E17*[1]RESUMO!D4 -> 0 | F18: =F17*[1]RESUMO!D4 -> 0 | G18: =G17*[1]RESUMO!D4 -> 0 | H18: =H17*[1]RESUMO!D4 -> 0 | I18: =I17*[1]RESUMO!D4 -> 0 | J18: =J17*[1]RESUMO!D4 -> 0 | K18: =K17*[1]RESUMO!D4 -> 0 | L18: =L17*[1]RESUMO!D4 -> 0 | M18: =M17*[1]RESUMO!D4 -> 0 | N18: =N17*[1]RESUMO!D4 -> 0 | O18: =SUM(C18:N18) -> 0
B19: Percentual | C19: =C18*[1]RESUMO!D5 -> 0 | D19: =D18*[1]RESUMO!D5 -> 0 | E19: =E18*[1]RESUMO!D5 -> 0 | F19: =F18*[1]RESUMO!D5 -> 0 | G19: =G18*[1]RESUMO!D5 -> 0 | H19: =H18*[1]RESUMO!D5 -> 0 | I19: =I18*[1]RESUMO!D5 -> 0 | J19: =J18*[1]RESUMO!D5 -> 0 | K19: =K18*[1]RESUMO!D5 -> 0 | L19: =L18*[1]RESUMO!D5 -> 0 | M19: =M18*[1]RESUMO!D5 -> 0 | N19: =N18*[1]RESUMO!D5 -> 0 | O19: =SUM(C19:N19) -> 0
B20: Sub-total | C20: =C19/O22 ->  | D20: =D19/O22 ->  | E20: =E19/O22 ->  | F20: =F19/O22 ->  | G20: =G19/O22 ->  | H20: =H19/O22 ->  | I20: =I19/O22 ->  | J20: =J19/O22 ->  | K20: =K19/O22 ->  | L20: =L19/O22 ->  | M20: =M19/O22 ->  | N20: =N19/O22 ->  | O20: =SUM(C20:N20) -> 
B21: Sub-total acumulado | C21: =C19 -> 0 | D21: =SUM(D19) -> 0 | E21: =SUM(E19) -> 0 | F21: =SUM(F19) -> 0 | G21: =SUM(G19) -> 0 | H21: =H19 -> 0 | I21: =SUM(I19) -> 0 | J21: =SUM(J19) -> 0 | K21: =K19 -> 0 | L21: =L19 -> 0 | M21: =M19 -> 0 | N21: =N19 -> 0 | O21: =O19 -> 0
B22: Percentual | C22: =C7+C21 -> 0 | D22: =C22+D21 -> 0 | E22: =D22+E21 -> 0 | F22: =SUM(E22+F21) -> 0 | G22: =F22+H21 -> 0 | H22: =G22+H21 -> 0 | I22: =H22+I21 -> 0 | J22: =I22+J21 -> 0 | K22: =J22+K21 -> 0 | L22: =K22+L21 -> 0 | M22: =L22+M21 -> 0 | N22: =M22+N21 -> 0 | O22: =O7+O19 -> 0
B23: Percentual acumulado | C23: =C22/O22 ->  | D23: =SUM(D20) ->  | K23: =K20 ->  | L23: =L20 ->  | M23: =SUM(M20) ->  | N23: =SUM(N20) -> 
A24: 3 | B24: Módulos Sanitários ligados a rede pública
B25: Físico | C25: 2 | D25: 1 | E25: 1 | F25: 2 | G25: 1 | H25: 1 | I25: 2 | J25: 1 | K25: 1 | L25: 1 | M25: 1 | N25: 1 | O25: =SUM(C25:N25) -> 15
B26: Financeiro | C26: =C25*[1]RESUMO!D12 -> 35408.26 | D26: =D25*[1]RESUMO!D12 -> 17704.13 | E26: =E25*[1]RESUMO!D12 -> 17704.13 | F26: =F25*[1]RESUMO!D12 -> 35408.26 | G26: =G25*[1]RESUMO!D12 -> 17704.13 | H26: =H25*[1]RESUMO!D12 -> 17704.13 | I26: =I25*[1]RESUMO!D12 -> 35408.26 | J26: =J25*[1]RESUMO!D12 -> 17704.13 | K26: =K25*[1]RESUMO!D12 -> 17704.13 | L26: =L25*[1]RESUMO!D12 -> 17704.13 | M26: =M25*[1]RESUMO!D12 -> 17704.13 | N26: =N25*[1]RESUMO!D12 -> 17704.13 | O26: =SUM(C26:N26) -> 265561.95
B27: Percentual | C27: =C26/O29 -> 0.1327146846 | D27: =D26/O29 -> 0.06635734232 | E27: =E26/O29 -> 0.06635734232 | F27: =F26/O29 -> 0.1327146846 | G27: =G26/O29 -> 0.06635734232 | H27: =H26/O29 -> 0.06635734232 | I27: =I26/O29 -> 0.1327146846 | J27: =J26/O29 -> 0.06635734232 | K27: =K26/O29 -> 0.06635734232 | L27: =L26/O29 -> 0.06635734232 | M27: =M26/O29 -> 0.06635734232 | N27: =N26/O29 -> 0.06635734232 | O27: =SUM(C27:N27) -> 0.9953601348
B28: Sub-total | C28: =C26 -> 35408.26 | D28: =SUM(D26) -> 17704.13 | E28: =SUM(E26) -> 17704.13 | F28: =SUM(F26) -> 35408.26 | G28: =SUM(G26) -> 17704.13 | H28: =H26 -> 17704.13 | I28: =SUM(I26) -> 35408.26 | J28: =SUM(J26) -> 17704.13 | K28: =K26 -> 17704.13 | L28: =L26 -> 17704.13 | M28: =M26 -> 17704.13 | N28: =N26 -> 17704.13 | O28: =O26 -> 265561.95
B29: Sub-total acumulado | C29: =C14+C28 -> 36646.1754 | D29: =C29+D28 -> 54350.3054 | E29: =D29+E28 -> 72054.4354 | F29: =SUM(E29+F28) -> 107462.6954 | G29: =F29+H28 -> 125166.8254 | H29: =G29+H28 -> 142870.9554 | I29: 178279.2154 | J29: 195983.3454 | K29: 213687.4754 | L29: 231391.6054 | M29: 249095.7354 | N29: =M29+N28 -> 266799.8654 | O29: =O14+O26 -> 266799.8654
B30: Percentual | C30: =C29/O29 -> 0.1373545498 | D30: =SUM(D27) -> 0.06635734232 | E30: 0.06635734232 | F30: 0.1327146846 | G30: 0.06635734232 | H30: 0.06635734232 | I30: 0.1327146846 | J30: 0.06635734232 | K30: =K27 -> 0.06635734232 | L30: =L27 -> 0.06635734232 | M30: =SUM(M27) -> 0.06635734232 | N30: =SUM(N27) -> 0.06635734232
B31: Percentual acumulado | C31: =C29/O29 -> 0.1373545498 | D31: =D29/O29 -> 0.2037118921 | E31: =E29/O29 -> 0.2700692345 | F31: =F29/O29 -> 0.4027839191 | G31: =G29/O29 -> 0.4691412614 | H31: =H29/O29 -> 0.5354986037 | I31: =I29/O29 -> 0.6682132884 | J31: =SUM(I31+J30) -> 0.7345706307 | K31: =J31+K30 -> 0.800927973 | L31: =K31+L30 -> 0.8672853154 | M31: =L31+M30 -> 0.9336426577 | N31: =SUM(M31+N30) -> 1

Sheet BDI
A1: Prefeitura Municipal de
A2: Convênio:
A3: Melhorias Sanitárias Domiciliares
A5: COMPOSIÇÃO DO BDI
A6: 1 | B6: BDI | J6: =7.5/100 -> 0.075
A7: 1.1 | B7: Administração Central | F7: 0.055
A8: 1.2 | B8: Despesas Financeiras | F8: 0.0096
A9: 1.3 | B9: Risco | F9: 0.0127
A10: 1.4 | B10: Garantia e Seguros | F10: 0.01
A11: 1.5 | B11: Lucro | F11: 0.075
A12: 1.6 | B12: ISS (*) | F12: 0.015
A13: 1.7 | B13: CONFINS | F13: 0.03
A14: 1.8 | B14: PIS | F14: 0.0065
A15: 1.9 | B15: CPRB | F15: 0.045
E17: Cáculo do BDI
B23: ITEM | C23: COMPONENTES BDI SERVIÇOS | G23: Valores de Referência - Componentes do BDI
B25: AC | C25: Administração Central | G25: AC | I25: 0.04 | L25: 0.055
B26: DF | C26: Despesas Financeiras | G26: DF | I26: 0.0123 | L26: 0.0096
B27: R | C27: Risco | G27: R | I27: 0.0127 | L27: 0.0127
C28: Garantia e Seguros | G28: GS | I28: 0.008 | L28: 0.01
B29: L | C29: Lucro | G29: L | I29: 0.074 | L29: 0.075
B30: I | C30: ISS (*) | F30: 0.015 | G30: Sem CPRB
C31: COFINS | F31: 0.03 | G31: BDI Total | I31: =(((1+I25+I28+I27)*(1+I26)*(1+I29))/(1-(F30+F31+F32)))-1 -> 0.2158185125
C32: PIS | F32: 0.0065
C33: CPRB | F33: 0.045 | G33: Com CPRB
G34: BDI Total | I34: =(((1+I25+I28+I27)*(1+I26)*(1+I29))/(1-(F30+F31+F32+F33)))-1 -> 0.2763739448
